fUST/lending_fUST_20260212
["ID","MTS","AMOUNT","RATE_DAILY","PERIOD"]
[405200235,1770900663838,-500.0,0.00036986,5]
[405200236,1770900663848,-863.41,0.00036986,5]
[405200237,1770900663857,-500.0,0.00036986,5]
[405200238,1770900663866,-666.32,0.00036986,5]
[405200239,1770900663876,-853.93,0.00036986,5]
[405200240,1770900663885,-500.0,0.00036986,5]
[405200241,1770900663895,-500.0,0.00036986,5]
[405200242,1770900663904,-500.0,0.00036986,5]
[405200243,1770900663914,-500.0,0.00036986,5]
[405200244,1770900663924,-500.0,0.00036986,5]
[405200245,1770900663934,-707.95,0.00036986,5]
[405200246,1770900663943,-773.6,0.00036986,5]
[405200247,1770900663953,-500.0,0.00036986,5]
[405200248,1770900663963,-500.0,0.00036986,5]
[405200249,1770900663972,-500.0,0.00036986,5]
[405200250,1770900663981,-1614.44,0.00036986,5]
[405200251,1770900663991,-538.5,0.00036986,5]
[405200252,1770900664001,-517.22,0.00036986,5]
[405200253,1770900664010,-500.0,0.00036986,5]
[405200254,1770900664020,-500.0,0.00036986,5]
[405200255,1770900664030,-500.0,0.00036986,5]
[405200256,1770900664039,-500.0,0.00036986,5]
[405200257,1770900664049,-8808.21,0.00036986,5]
[405200258,1770900664059,-593.39,0.00036986,2]
[405200259,1770900664068,-2336.57,0.00036986,5]
[405200260,1770900664078,-164.66861109,0.00036986,5]
[405200261,1770900664088,-12247.88,0.00036986,5]
[405200262,1770900664100,-1253.57,0.00036986,5]
[405200263,1770900664111,-500.0,0.00036986,5]
[405200264,1770900664121,-500.0,0.00036986,5]
[405200265,1770900664130,-715.12,0.00036986,5]
[405200266,1770900664141,-5005.86,0.00036986,2]
[405200267,1770900664151,-500.0,0.00036986,5]
[405200268,1770900664161,-422.08473177,0.00036986,5]
[405200269,1770900664173,-500.0,0.00036986,5]
[405200270,1770900664184,-500.0,0.00036986,5]
[405200271,1770900664193,-500.0,0.00036986,5]
[405200272,1770900664203,-702.48,0.00036986,5]
[405200273,1770900664212,-4185.11,0.00036986,5]
[405200274,1770900664222,-804.1,0.00036986,5]
[405200275,1770900664232,-1795.55,0.00036986,5]
[405200276,1770900664242,-680.21,0.00036986,5]
[405200277,1770900664251,-3078.96,0.00036986,2]
[405200278,1770900664261,-500.0,0.00036986,5]
[405200279,1770900664270,-61531.34,0.00036986,5]
[405200280,1770900664280,-504.37,0.00036986,5]
[405200281,1770900664290,-500.0,0.00036986,5]
[405200282,1770900664300,-506.40307158,0.00036986,5]
[405200283,1770900664310,-769.52,0.00036986,5]
[405200284,1770900664319,-151.0,0.00036986,44]
[405200285,1770900664328,-1004.04179322,0.00036986,5]
[405200286,1770900664338,-43853.05378855,0.00036999,120]
[405200287,1770900664347,-431.566731,0.00037,120]
[405200288,1770900664357,-1000.74443,0.00037,120]
[405200289,1770900664366,-1026.0,0.00037,30]
[405200290,1770900664375,-40045.90650622,0.00037,2]
[405200291,1770900664386,-2049.74315242,0.00037,2]
[405200292,1770900664395,-208.1708113,0.00037,20]
[405200293,1770900664405,-401.0,0.00037026,11]
[405200294,1770900664416,-401.0,0.00037072,11]
[405200295,1770900664425,-200.0,0.00037081,120]
[405200296,1770900664435,-1781.39,0.000371,14]
[405200297,1770900664444,-401.0,0.00037112,11]
[405200298,1770900664453,-200.0,0.00037135,120]
[405200299,1770900664463,-200.0,0.0003717,120]
[405200300,1770900664472,-583.7,0.0003726,5]
[405200301,1770900664482,-771.02,0.0003726,5]
[405200302,1770900664491,-319.22558971,0.0003726,2]
[405200303,1770900664502,-1000.0,0.0003726,2]
[405200304,1770900664512,-500.0,0.0003726,5]
[405200305,1770900664523,-500.0,0.0003726,5]
[405200306,1770900664532,-348.19632983,0.0003726,5]
[405200307,1770900664541,-1117.07,0.0003726,5]
[405200308,1770900664550,-500.0,0.0003726,5]
[405200309,1770900664559,-1000.0,0.0003726,2]
[405200310,1770900664567,-939.98,0.0003726,5]
[405200311,1770900664576,-500.0,0.0003726,5]
[405200312,1770900664585,-914.41,0.0003726,5]
[405200313,1770900664594,-742.27,0.0003726,5]
[405200314,1770900664603,-500.0,0.0003726,5]
[405200315,1770900664612,-863.41,0.0003726,5]
[405200316,1770900664621,-500.0,0.0003726,5]
[405200317,1770900664629,-666.32,0.0003726,5]
[405200318,1770900664638,-853.93,0.0003726,5]
[405200319,1770900664646,-500.0,0.0003726,5]
[405200320,1770900664655,-500.0,0.0003726,5]
[405200321,1770900664663,-500.0,0.0003726,5]
[405200322,1770900664672,-500.0,0.0003726,5]
[405200323,1770900664682,-500.0,0.0003726,5]
[405200324,1770900664690,-707.95,0.0003726,5]
[405200325,1770900664699,-773.6,0.0003726,5]
[405200326,1770900664708,-500.0,0.0003726,5]
[405200327,1770900664716,-500.0,0.0003726,5]
[405200328,1770900664724,-500.0,0.0003726,5]
[405200329,1770900664733,-1614.44,0.0003726,5]
[405200330,1770900664742,-538.5,0.0003726,5]
[405200331,1770900664751,-517.22,0.0003726,5]
[405200332,1770900664760,-500.0,0.0003726,5]
[405200333,1770900664769,-500.0,0.0003726,5]
[405200334,1770900664778,-500.0,0.0003726,5]
[405200335,1770900664788,-500.0,0.0003726,5]
[405200336,1770900664797,-8808.21,0.0003726,5]
[405200337,1770900664807,-593.39,0.0003726,2]
[405200338,1770900664816,-2336.57,0.0003726,5]
[405200339,1770900664825,-12247.88,0.0003726,5]
[405200340,1770900664838,-1253.57,0.0003726,5]
[405200341,1770900664848,-500.0,0.0003726,5]
[405200342,1770900664858,-463.65377978,0.0003726,5]
[405200343,1770900664868,-715.12,0.0003726,5]
[405200344,1770900664879,-5005.86,0.0003726,2]
[405200345,1770900664888,-554.11707649,0.0003726,5]
[405200346,1770900664898,-500.0,0.0003726,5]
[405200347,1770900664907,-500.0,0.0003726,5]
[405200348,1770900664917,-500.0,0.0003726,5]
[405200349,1770900664927,-702.48,0.0003726,5]
[405200350,1770900664937,-4185.11,0.0003726,5]
[405200351,1770900664947,-804.1,0.0003726,5]
[405200352,1770900664957,-1795.55,0.0003726,5]
[405200353,1770900664967,-680.21,0.0003726,5]
[405200354,1770900664977,-3078.96,0.0003726,2]
[405200355,1770900664987,-500.0,0.0003726,5]
[405200356,1770900664997,-61531.34,0.0003726,5]
[405200357,1770900665007,-504.37,0.0003726,5]
[405200358,1770900665017,-313.31331191,0.0003726,5]
[405200359,1770900665027,-769.52,0.0003726,5]
[405200360,1770900665036,-406.0,0.00037358,11]
[405200361,1770900665046,-162.0,0.00037386,11]
[405200362,1770900665055,-401.0,0.00037406,11]
[405200363,1770900665064,-180.0,0.0003743,90]
[405200364,1770900665074,-170.86262005,0.0003743,90]
[405200365,1770900665085,-401.0,0.00037438,11]
[405200366,1770900665097,-21831.68253769,0.000375,2]
[405200367,1770900665106,-583.7,0.00037534,5]
[405200368,1770900665116,-771.02,0.00037534,5]
[405200369,1770900665126,-1000.0,0.00037534,2]
[405200370,1770900665136,-500.0,0.00037534,5]
[405200371,1770900665146,-509.00325464,0.00037534,5]
[405200372,1770900665157,-1117.07,0.00037534,5]
[405200373,1770900665171,-500.0,0.00037534,5]
[405200374,1770900665182,-1000.0,0.00037534,2]
[405200375,1770900665194,-939.98,0.00037534,5]
[405200376,1770900665203,-263.64831192,0.00037534,5]
[405200377,1770900665214,-914.41,0.00037534,5]
[405200378,1770900665223,-742.27,0.00037534,5]
[405200379,1770900665232,-500.0,0.00037534,5]
[405200380,1770900665242,-863.41,0.00037534,5]
[405200381,1770900665251,-500.0,0.00037534,5]
[405200382,1770900665261,-666.32,0.00037534,5]
[405200383,1770900665270,-853.93,0.00037534,5]
[405200384,1770900665280,-500.0,0.00037534,5]
[405200385,1770900665289,-500.0,0.00037534,5]
[405200386,1770900665299,-500.0,0.00037534,5]
[405200387,1770900665308,-500.0,0.00037534,5]
[405200388,1770900665318,-312.29052048,0.00037534,5]
[405200389,1770900665328,-707.95,0.00037534,5]
[405200390,1770900665337,-773.6,0.00037534,5]
[405200391,1770900665346,-500.0,0.00037534,5]
[405200392,1770900665356,-500.0,0.00037534,5]
[405200393,1770900665365,-500.0,0.00037534,5]
[405200394,1770900665374,-1614.44,0.00037534,5]
[405200395,1770900665384,-538.5,0.00037534,5]
[405200396,1770900665394,-517.22,0.00037534,5]
[405200397,1770900665403,-500.0,0.00037534,5]
[405200398,1770900665412,-500.0,0.00037534,5]
[405200399,1770900665421,-500.0,0.00037534,5]
[405200400,1770900665430,-629.81780322,0.00037534,5]
[405200401,1770900665440,-8808.21,0.00037534,5]
[405200402,1770900665449,-593.39,0.00037534,2]
[405200403,1770900665458,-2336.57,0.00037534,5]
[405200404,1770900665467,-12247.88,0.00037534,5]
[405200405,1770900665477,-1253.57,0.00037534,5]
[405200406,1770900665488,-500.0,0.00037534,5]
[405200407,1770900665498,-715.12,0.00037534,5]
[405200408,1770900665508,-5005.86,0.00037534,2]
[405200409,1770900665517,-500.0,0.00037534,5]
[405200410,1770900665527,-523.77973015,0.00037534,5]
[405200411,1770900665537,-500.0,0.00037534,5]
[405200412,1770900665546,-702.48,0.00037534,5]
[405200413,1770900665555,-4185.11,0.00037534,5]
[405200414,1770900665565,-804.1,0.00037534,5]
[405200415,1770900665575,-1795.55,0.00037534,5]
[405200416,1770900665588,-680.21,0.00037534,5]
[405200417,1770900665597,-3078.96,0.00037534,2]
[405200418,1770900665607,-500.0,0.00037534,5]
[405200419,1770900665617,-61531.34,0.00037534,5]
[405200420,1770900665627,-504.37,0.00037534,5]
[405200421,1770900665636,-769.52,0.00037534,5]
[405200422,1770900665645,-1674.79,0.00037543,30]
[405200423,1770900665655,-880.16725844,0.00037548,120]
[405200424,1770900665664,-200.0,0.00037578,120]
[405200425,1770900665674,-160.0,0.00037579,9]
[405200426,1770900665683,-257.56589583,0.00037579,5]
[405200427,1770900665692,-200.0,0.000376,2]
[405200428,1770900665702,-200.0,0.000376,2]
[405200429,1770900665711,-562.83259064,0.0003762,10]
[405200430,1770900665720,-168.2306,0.00037631,2]
[405200431,1770900665730,-401.0,0.00037647,11]
[405200432,1770900665740,-401.0,0.00037666,11]
[405200433,1770900665840,-200.0,0.00037738,120]
[405200434,1770900665851,-450.0,0.000378,120]
[405200435,1770900665862,-1024.24867032,0.000378,2]
[405200436,1770900665871,-583.7,0.00037808,5]
[405200437,1770900665881,-771.02,0.00037808,5]
[405200438,1770900665891,-1000.0,0.00037808,2]
[405200439,1770900665903,-500.0,0.00037808,5]
[405200440,1770900665924,-1117.07,0.00037808,5]
[405200441,1770900665945,-500.0,0.00037808,5]
[405200442,1770900665955,-1000.0,0.00037808,2]
[405200443,1770900665964,-939.98,0.00037808,5]
[405200444,1770900665974,-914.41,0.00037808,5]
[405200445,1770900665983,-742.27,0.00037808,5]
[405200446,1770900665993,-443.39174361,0.00037808,5]
[405200447,1770900666002,-863.41,0.00037808,5]
[405200448,1770900666012,-500.0,0.00037808,5]
[405200449,1770900666021,-666.32,0.00037808,5]
[405200450,1770900666031,-853.93,0.00037808,5]
[405200451,1770900666040,-500.0,0.00037808,5]
[405200452,1770900666050,-500.0,0.00037808,5]
[405200453,1770900666059,-500.0,0.00037808,5]
[405200454,1770900666069,-500.0,0.00037808,5]
[405200455,1770900666080,-707.95,0.00037808,5]
[405200456,1770900666089,-773.6,0.00037808,5]
[405200457,1770900666102,-500.0,0.00037808,5]
[405200458,1770900666111,-500.0,0.00037808,5]
[405200459,1770900666121,-500.0,0.00037808,5]
[405200460,1770900666131,-1614.44,0.00037808,5]
[405200461,1770900666143,-538.5,0.00037808,5]
[405200462,1770900666152,-517.22,0.00037808,5]
[405200463,1770900666162,-500.0,0.00037808,5]
[405200464,1770900666172,-500.0,0.00037808,5]
[405200465,1770900666182,-318.89227481,0.00037808,5]
[405200466,1770900666191,-8808.21,0.00037808,5]
[405200467,1770900666200,-593.39,0.00037808,2]
[405200468,1770900666210,-2336.57,0.00037808,5]
[405200469,1770900666220,-12247.88,0.00037808,5]
[405200470,1770900666230,-1253.57,0.00037808,5]
[405200471,1770900666239,-500.0,0.00037808,5]
[405200472,1770900666249,-715.12,0.00037808,5]
[405200473,1770900666259,-5005.86,0.00037808,2]
[405200474,1770900666269,-500.0,0.00037808,5]
[405200475,1770900666279,-500.0,0.00037808,5]
[405200476,1770900666288,-702.48,0.00037808,5]
[405200477,1770900666297,-4185.11,0.00037808,5]
[405200478,1770900666307,-804.1,0.00037808,5]
[405200479,1770900666317,-1795.55,0.00037808,5]
[405200480,1770900666327,-680.21,0.00037808,5]
[405200481,1770900666337,-3078.96,0.00037808,2]
[405200482,1770900666346,-500.0,0.00037808,5]
[405200483,1770900666355,-61531.34,0.00037808,5]
[405200484,1770900666364,-504.37,0.00037808,5]
[405200485,1770900666374,-769.52,0.00037808,5]
[405200486,1770900666383,-242184.2965955,0.00037814,30]
[405200487,1770900666392,-175.5999234,0.0003784,120]
[405200488,1770900666401,-401.0,0.00037861,11]
[405200489,1770900666411,-250.0,0.00037888,31]
[405200490,1770900666420,-500.0,0.00037888,31]
[405200491,1770900666430,-250.0,0.00037888,31]
[405200492,1770900666439,-250.0,0.00037888,31]
[405200493,1770900666450,-250.0,0.00037888,31]
[405200494,1770900666459,-250.0,0.00037888,31]
[405200495,1770900666468,-194.72792766,0.00037888,31]
[405200496,1770900666478,-500.0,0.00037888,31]
[405200497,1770900666488,-250.0,0.00037888,31]
[405200498,1770900666498,-250.0,0.00037888,31]
[405200499,1770900666508,-250.0,0.00037888,31]
[405200500,1770900666518,-250.0,0.00037888,31]
[405200501,1770900666527,-250.0,0.00037889,31]
[405200502,1770900666537,-500.0,0.00037889,31]
[405200503,1770900666547,-250.0,0.00037889,31]
[405200504,1770900666556,-250.0,0.00037889,31]
[405200505,1770900666566,-250.0,0.00037889,31]
[405200506,1770900666576,-250.0,0.00037889,31]
[405200507,1770900666585,-187.78006525,0.00037889,31]
[405200508,1770900666595,-500.0,0.00037889,31]
[405200509,1770900666603,-250.0,0.00037889,31]
[405200510,1770900666613,-250.0,0.00037889,31]
[405200511,1770900666623,-250.0,0.00037889,31]
[405200512,1770900666633,-250.0,0.00037889,31]
[405200513,1770900666642,-125470.43778958,0.0003789,2]
[405200514,1770900666651,-10522.62274816,0.00037893,3]
[405200515,1770900666660,-1000.0,0.000379,2]
[405200516,1770900666670,-250.0,0.0003796,30]
[405200517,1770900666679,-500.0,0.0003796,30]
[405200518,1770900666689,-250.0,0.0003796,30]
[405200519,1770900666699,-250.0,0.0003796,30]
[405200520,1770900666709,-250.0,0.0003796,30]
[405200521,1770900666717,-250.0,0.0003796,30]
[405200522,1770900666727,-181.08010149,0.0003796,30]
[405200523,1770900666736,-500.0,0.0003796,30]
[405200524,1770900666745,-250.0,0.0003796,30]
[405200525,1770900666754,-250.0,0.0003796,30]
[405200526,1770900666763,-250.0,0.0003796,30]
[405200527,1770900666773,-250.0,0.0003796,30]
[405200528,1770900666783,-250.0,0.00037962,30]
[405200529,1770900666792,-500.0,0.00037962,30]
[405200530,1770900666802,-250.0,0.00037962,30]
[405200531,1770900666811,-250.0,0.00037962,30]
[405200532,1770900666821,-250.0,0.00037962,30]
[405200533,1770900666832,-250.0,0.00037962,30]
[405200534,1770900666841,-174.61919141,0.00037962,30]
[405200535,1770900666850,-500.0,0.00037962,30]
[405200536,1770900666859,-250.0,0.00037962,30]
[405200537,1770900666868,-250.0,0.00037962,30]
[405200538,1770900666878,-250.0,0.00037962,30]
[405200539,1770900666886,-250.0,0.00037962,30]
[405200540,1770900666896,-250.0,0.0003797,30]
[405200541,1770900666905,-250.0,0.0003797,30]
[405200542,1770900666915,-500.0,0.0003797,30]
[405200543,1770900666924,-250.0,0.0003797,30]
[405200544,1770900666933,-250.0,0.0003797,30]
[405200545,1770900666943,-500.0,0.0003797,31]
[405200546,1770900666952,-250.0,0.0003797,31]
[405200547,1770900666961,-250.0,0.0003797,31]
[405200548,1770900666971,-250.0,0.0003797,31]
[405200549,1770900666981,-250.0,0.0003797,31]
[405200550,1770900666991,-250.0,0.0003797,30]
[405200551,1770900667000,-250.0,0.0003797,31]
[405200552,1770900667010,-162.380719,0.0003797,30]
[405200553,1770900667019,-168.3888056,0.0003797,31]
[405200554,1770900667027,-2000.0,0.0003797,30]
[405200555,1770900667035,-2000.0,0.0003797,31]
[405200556,1770900667044,-500.0,0.0003797,30]
[405200557,1770900667053,-500.0,0.0003797,31]
[405200558,1770900667062,-250.0,0.0003797,30]
[405200559,1770900667071,-250.0,0.0003797,31]
[405200560,1770900667080,-250.0,0.0003797,30]
[405200561,1770900667090,-250.0,0.0003797,31]
[405200562,1770900667103,-250.0,0.0003797,30]
[405200563,1770900667112,-250.0,0.0003797,30]
[405200564,1770900667122,-250.0,0.0003797,31]
[405200565,1770900667131,-250.0,0.0003797,31]
[405200566,1770900667141,-34308.0625335,0.00037972,15]
[405200567,1770900667150,-2000.0,0.00038,120]
[405200568,1770900667160,-2269.43943027,0.00038,120]
[405200569,1770900667169,-247.69351,0.00038,120]
[405200570,1770900667178,-10029.52586227,0.00038,30]
[405200571,1770900667188,-712.0,0.00038004,11]
[405200572,1770900667197,-200.0,0.00038075,120]
[405200573,1770900667207,-583.7,0.00038082,5]
[405200574,1770900667216,-771.02,0.00038082,5]
[405200575,1770900667225,-1000.0,0.00038082,2]
[405200576,1770900667235,-502.997601,0.00038082,5]
[405200577,1770900667244,-1117.07,0.00038082,5]
[405200578,1770900667253,-500.0,0.00038082,5]
[405200579,1770900667262,-1000.0,0.00038082,2]
[405200580,1770900667270,-939.98,0.00038082,5]
[405200581,1770900667278,-914.41,0.00038082,5]
[405200582,1770900667286,-742.27,0.00038082,5]
[405200583,1770900667294,-863.41,0.00038082,5]
[405200584,1770900667302,-500.0,0.00038082,5]
[405200585,1770900667311,-666.32,0.00038082,5]
[405200586,1770900667319,-853.93,0.00038082,5]
[405200587,1770900667327,-500.0,0.00038082,5]
[405200588,1770900667336,-317.02728593,0.00038082,5]
[405200589,1770900667344,-500.0,0.00038082,5]
[405200590,1770900667354,-500.0,0.00038082,5]
[405200591,1770900667362,-707.95,0.00038082,5]
[405200592,1770900667371,-773.6,0.00038082,5]
[405200593,1770900667380,-500.0,0.00038082,5]
[405200594,1770900667390,-500.0,0.00038082,5]
[405200595,1770900667399,-500.0,0.00038082,5]
[405200596,1770900667409,-1614.44,0.00038082,5]
[405200597,1770900667418,-538.5,0.00038082,5]
[405200598,1770900667427,-517.22,0.00038082,5]
[405200599,1770900667436,-500.0,0.00038082,5]
[405200600,1770900667444,-500.0,0.00038082,5]
[405200601,1770900667454,-8808.21,0.00038082,5]
[405200602,1770900667462,-593.39,0.00038082,2]
[405200603,1770900667472,-2336.57,0.00038082,5]
[405200604,1770900667480,-12247.88,0.00038082,5]
[405200605,1770900667489,-1253.57,0.00038082,5]
[405200606,1770900667498,-500.0,0.00038082,5]
[405200607,1770900667507,-715.12,0.00038082,5]
[405200608,1770900667517,-5005.86,0.00038082,2]
[405200609,1770900667526,-500.0,0.00038082,5]
[405200610,1770900667535,-500.0,0.00038082,5]
[405200611,1770900667545,-702.48,0.00038082,5]
[405200612,1770900667554,-4185.11,0.00038082,5]
[405200613,1770900667563,-804.1,0.00038082,5]
[405200614,1770900667572,-1795.55,0.00038082,5]
[405200615,1770900667582,-680.21,0.00038082,5]
[405200616,1770900667667,-3078.96,0.00038082,2]
[405200617,1770900667677,-500.0,0.00038082,5]
[405200618,1770900667686,-61531.34,0.00038082,5]
[405200619,1770900667695,-504.37,0.00038082,5]
[405200620,1770900667704,-769.52,0.00038082,5]
[405200621,1770900667714,-500.0,0.00038099,30]
[405200622,1770900667723,-250.0,0.00038099,30]
[405200623,1770900667733,-250.0,0.00038099,30]
[405200624,1770900667744,-250.0,0.00038099,30]
[405200625,1770900667754,-250.0,0.00038099,30]
[405200626,1770900667764,-169.69317345,0.00038099,30]
[405200627,1770900667773,-250.0,0.00038099,30]
[405200628,1770900667783,-303.15936423,0.00038099,30]
[405200629,1770900667792,-156.587,0.00038099,30]
[405200630,1770900667802,-2000.0,0.00038099,30]
[405200631,1770900667811,-500.0,0.00038099,30]
[405200632,1770900667820,-174.88833835,0.00038099,30]
[405200633,1770900667829,-250.0,0.00038099,30]
[405200634,1770900667839,-250.0,0.00038099,30]
[405200635,1770900667848,-250.0,0.00038099,30]
[405200636,1770900667857,-250.0,0.00038099,30]
[405200637,1770900667866,-164.77090952,0.00038099,30]
[405200638,1770900667874,-3568.529406,0.000381,2]
[405200639,1770900667883,-1445.876,0.000381,120]
[405200640,1770900667891,-1445.876,0.000381,60]
[405200641,1770900667899,-1445.87,0.000381,30]
[405200642,1770900667909,-1595.068,0.000381,30]
[405200643,1770900667918,-222365.81781685,0.0003813,2]
[405200644,1770900667927,-200.0,0.00038248,120]
[405200645,1770900667937,-199.71573677,0.00038298,30]
[405200646,1770900667946,-500.0,0.00038298,30]
[405200647,1770900667956,-250.0,0.00038298,30]
[405200648,1770900667966,-250.0,0.00038298,30]
[405200649,1770900667976,-250.0,0.00038298,30]
[405200650,1770900667986,-261.91322737,0.00038298,30]
[405200651,1770900667995,-250.0,0.00038298,30]
[405200652,1770900668005,-151.0,0.00038298,30]
[405200653,1770900668015,-1922.25001089,0.00038298,30]
[405200654,1770900668025,-250.0,0.00038298,30]
[405200655,1770900668035,-151.0,0.00038298,30]
[405200656,1770900668044,-151.0,0.00038298,30]
[405200657,1770900668054,-500.0,0.00038298,30]
[405200658,1770900668063,-2000.0,0.00038298,30]
[405200659,1770900668073,-1059.24827356,0.00038298,30]
[405200660,1770900668082,-151.0,0.00038298,30]
[405200661,1770900668093,-250.0,0.00038298,30]
[405200662,1770900668104,-250.0,0.00038298,30]
[405200663,1770900668113,-250.0,0.00038298,30]
[405200664,1770900668123,-250.0,0.00038298,30]
[405200665,1770900668134,-151.0,0.00038298,30]
[405200666,1770900668143,-583.7,0.00038356,5]
[405200667,1770900668152,-771.02,0.00038356,5]
[405200668,1770900668161,-1000.0,0.00038356,2]
[405200669,1770900668172,-1117.07,0.00038356,5]
[405200670,1770900668181,-500.0,0.00038356,5]
[405200671,1770900668191,-1000.0,0.00038356,2]
[405200672,1770900668199,-939.98,0.00038356,5]
[405200673,1770900668208,-914.41,0.00038356,5]
[405200674,1770900668217,-742.27,0.00038356,5]
[405200675,1770900668226,-863.41,0.00038356,5]
[405200676,1770900668235,-500.0,0.00038356,5]
[405200677,1770900668245,-666.32,0.00038356,5]
[405200678,1770900668255,-853.93,0.00038356,5]
[405200679,1770900668264,-308.64,0.00038356,5]
[405200680,1770900668273,-308.64,0.00038356,5]
[405200681,1770900668282,-308.64,0.00038356,5]
[405200682,1770900668292,-308.64,0.00038356,5]
[405200683,1770900668301,-308.64,0.00038356,5]
[405200684,1770900668314,-308.64,0.00038356,5]
[405200685,1770900668324,-308.64,0.00038356,5]
[405200686,1770900668334,-308.64,0.00038356,5]
[405200687,1770900668344,-308.64,0.00038356,5]
[405200688,1770900668354,-308.64,0.00038356,5]
[405200689,1770900668363,-308.64,0.00038356,5]
[405200690,1770900668373,-500.0,0.00038356,5]
[405200691,1770900668382,-500.0,0.00038356,5]
[405200692,1770900668392,-500.0,0.00038356,5]
[405200693,1770900668402,-707.95,0.00038356,5]
[405200694,1770900668412,-773.6,0.00038356,5]
[405200695,1770900668422,-500.0,0.00038356,5]
[405200696,1770900668431,-638.52388438,0.00038356,5]
[405200697,1770900668440,-1614.44,0.00038356,5]
[405200698,1770900668449,-538.5,0.00038356,5]
[405200699,1770900668459,-517.22,0.00038356,5]
[405200700,1770900668469,-500.0,0.00038356,5]
[405200701,1770900668478,-500.0,0.00038356,5]
[405200702,1770900668488,-8808.21,0.00038356,5]
[405200703,1770900668498,-593.39,0.00038356,2]
[405200704,1770900668508,-2336.57,0.00038356,5]
[405200705,1770900668518,-12247.88,0.00038356,5]
[405200706,1770900668529,-1253.57,0.00038356,5]
[405200707,1770900668538,-287.11392742,0.00038356,5]
[405200708,1770900668548,-715.12,0.00038356,5]
[405200709,1770900668558,-5005.86,0.00038356,2]
[405200710,1770900668568,-500.0,0.00038356,5]
[405200711,1770900668577,-500.0,0.00038356,5]
[405200712,1770900668587,-702.48,0.00038356,5]
[405200713,1770900668596,-4185.11,0.00038356,5]
[405200714,1770900668606,-804.1,0.00038356,5]
[405200715,1770900668615,-1795.55,0.00038356,5]
[405200716,1770900668625,-680.21,0.00038356,5]
[405200717,1770900668634,-3078.96,0.00038356,2]
[405200718,1770900668645,-500.0,0.00038356,5]
[405200719,1770900668655,-61531.34,0.00038356,5]
[405200720,1770900668664,-504.37,0.00038356,5]
[405200721,1770900668674,-769.52,0.00038356,5]
[405200722,1770900668684,-151.0,0.00038356,120]
[405200723,1770900668693,-151.0,0.00038356,120]
[405200724,1770900668704,-151.0,0.00038356,120]
[405200725,1770900668713,-151.0,0.00038356,120]
[405200726,1770900668723,-151.0,0.00038356,120]
[405200727,1770900668732,-151.0,0.00038356,120]
[405200728,1770900668742,-151.0,0.00038356,120]
[405200729,1770900668751,-151.0,0.00038356,120]
[405200730,1770900668762,-151.0,0.00038356,120]
[405200731,1770900668771,-151.0,0.00038356,120]
[405200732,1770900668781,-151.0,0.00038356,120]
[405200733,1770900668791,-151.0,0.00038356,120]
[405200734,1770900668801,-237.115383,0.00038356,120]